fUSD/lending_fUSD_20240423
["ID","MTS","AMOUNT","RATE_DAILY","PERIOD"]
[323275942,1713864640249,-555.3901913,0.00011586,2]
[323275944,1713864640259,-500.0,0.00011586,2]
[323275946,1713864640269,-500.0,0.00011586,2]
[323275948,1713864640279,-503.91555752,0.00011586,2]
[323275950,1713864640289,-501.21823171,0.00011586,2]
[323275952,1713864640298,-500.0,0.00011586,2]
[323275954,1713864640307,-500.0,0.00011586,2]
[323275956,1713864640322,-502.36814552,0.00011586,2]
[323275958,1713864640332,-972.8,0.00011586,2]
[323275960,1713864640343,-500.0,0.00011586,2]
[323275961,1713864640355,-500.0,0.00011586,2]
[323275964,1713864640365,-500.0,0.00011586,2]
[323275966,1713864640375,-421.95552954,0.00011586,2]
[323275968,1713864640386,-500.0,0.00011586,2]
[323275970,1713864640398,-501.08256497,0.00011586,2]
[323275972,1713864640407,-501.86128044,0.00011586,2]
[323275974,1713864640416,-328.60425986,0.00011586,2]
[323275975,1713864640425,-518.88124678,0.00011586,2]
[323275977,1713864640434,-502.42167712,0.00011586,2]
[323275979,1713864640444,-500.0,0.00011586,2]
[323275981,1713864640453,-500.0,0.00011586,2]
[323275983,1713864640462,-500.0,0.00011586,2]
[323275986,1713864640474,-500.0,0.00011586,2]
[323275988,1713864640483,-500.90250241,0.00011586,2]
[323275989,1713864640493,-500.0,0.00011586,2]
[323275992,1713864640502,-500.0,0.00011586,2]
[323275994,1713864640511,-500.0,0.00011586,2]
[323275996,1713864640521,-550.91,0.00011586,2]
[323275997,1713864640530,-500.0,0.00011586,2]
[323275999,1713864640539,-501.14815085,0.00011586,2]
[323276001,1713864640551,-503.32350494,0.00011586,2]
[323276003,1713864640560,-500.0,0.00011586,2]
[323276005,1713864640569,-500.0,0.00011586,2]
[323276008,1713864640579,-503.13657075,0.00011586,2]
[323276009,1713864640589,-504.09832341,0.00011586,2]
[323276011,1713864640598,-502.56897386,0.00011586,2]
[323276014,1713864640608,-500.0,0.00011586,2]
[323276015,1713864640617,-500.0,0.00011586,2]
[323276017,1713864640626,-503.25539977,0.00011586,2]
[323276018,1713864640635,-500.0,0.00011586,2]
[323276019,1713864640644,-500.0,0.00011586,2]
[323276020,1713864640654,-304.67845089,0.00011586,2]
[323276021,1713864640663,-500.0,0.00011586,2]
[323276022,1713864640672,-501.98009169,0.00011586,2]
[323276023,1713864640682,-500.0,0.00011586,2]
[323276024,1713864640691,-500.0,0.00011586,2]
[323276025,1713864640700,-500.0,0.00011586,2]
[323276026,1713864640709,-500.0,0.00011586,2]
[323276027,1713864640719,-500.0,0.00011586,2]
[323276028,1713864640728,-500.0,0.00011586,2]
[323276029,1713864640737,-505.00928051,0.00011586,2]
[323276030,1713864640746,-500.0,0.00011586,2]
[323276031,1713864640755,-500.0,0.00011586,2]
[323276032,1713864640765,-500.0,0.00011586,2]
[323276033,1713864640774,-503.58604067,0.00011586,2]
[323276034,1713864640784,-500.0,0.00011586,2]
[323276035,1713864640793,-1472.4,0.00011586,2]
[323276036,1713864640802,-226.35515461,0.00011586,2]
[323276037,1713864640814,-500.0,0.00011586,2]
[323276039,1713864640823,-500.0,0.00011586,2]
[323276041,1713864640832,-460.27817615,0.00011586,2]
[323276043,1713864640842,-964.26,0.00011586,2]
[323276045,1713864640851,-500.0,0.00011586,2]
[323276047,1713864640860,-500.0,0.00011586,2]
[323276049,1713864640869,-500.0,0.00011586,2]
[323276052,1713864640879,-500.0,0.00011586,2]
[323276054,1713864640888,-500.0,0.00011586,2]
[323276056,1713864640898,-500.0,0.00011586,2]
[323276058,1713864640907,-17208.63,0.00011586,2]
[323276060,1713864640917,-500.0,0.00011586,2]
[323276062,1713864640926,-500.0,0.00011586,2]
[323276064,1713864640935,-500.0,0.00011586,2]
[323276067,1713864640945,-500.0,0.00011586,2]
[323276069,1713864640955,-500.0,0.00011586,2]
[323276070,1713864640964,-500.0,0.00011586,2]
[323276072,1713864640973,-500.0,0.00011586,2]
[323276074,1713864640982,-500.0,0.00011586,2]
[323276077,1713864640992,-500.0,0.00011586,2]
[323276078,1713864641001,-518.37211945,0.00011586,2]
[323276081,1713864641010,-500.0,0.00011586,2]
[323276082,1713864641019,-500.0,0.00011586,2]
[323276084,1713864641028,-500.33238296,0.00011586,2]
[323276086,1713864641037,-500.0,0.00011586,2]
[323276088,1713864641046,-500.95671944,0.00011586,2]
[323276089,1713864641056,-500.0,0.00011586,2]
[323276091,1713864641064,-500.0,0.00011586,2]
[323276093,1713864641073,-508.48167479,0.00011586,2]
[323276095,1713864641082,-500.0,0.00011586,2]
[323276097,1713864641092,-500.0,0.00011586,2]
[323276098,1713864641100,-500.0,0.00011586,2]
[323276099,1713864641109,-500.0,0.00011586,2]
[323276100,1713864641118,-500.0,0.00011586,2]
[323276101,1713864641126,-500.0,0.00011586,2]
[323276102,1713864641135,-389.3252772,0.00011586,2]
[323276103,1713864641144,-500.0,0.00011586,2]
[323276104,1713864641153,-500.0,0.00011586,2]
[323276105,1713864641162,-500.0,0.00011586,2]
[323276106,1713864641171,-500.0,0.00011586,2]
[323276107,1713864641180,-500.0,0.00011586,2]
[323276108,1713864641189,-460.67116417,0.00011586,2]
[323276109,1713864641197,-5855.11,0.00011586,2]
[323276111,1713864641206,-501.09331434,0.00011586,2]
[323276113,1713864641215,-500.0,0.00011586,2]
[323276115,1713864641224,-500.0,0.00011586,2]
[323276117,1713864641233,-500.0,0.00011586,2]
[323276119,1713864641242,-503.35288842,0.00011586,2]
[323276121,1713864641251,-500.0,0.00011586,2]
[323276123,1713864641261,-531.41958543,0.00011586,2]
[323276125,1713864641270,-500.0,0.00011586,2]
[323276127,1713864641279,-1505.19,0.00011586,2]
[323276129,1713864641287,-500.0,0.00011586,2]
[323276131,1713864641297,-2130.43,0.00011586,2]
[323276133,1713864641305,-208.38556251,0.00011586,2]
[323276135,1713864641314,-500.0,0.00011586,2]
[323276137,1713864641324,-1358.6,0.00011586,2]
[323276139,1713864641332,-6409.69,0.00011586,2]
[323276141,1713864641341,-6409.69,0.00011586,2]
[323276143,1713864641350,-6409.69,0.00011586,2]
[323276145,1713864641359,-6409.69,0.00011586,2]
[323276147,1713864641370,-6409.69,0.00011586,2]
[323276149,1713864641380,-6409.69,0.00011586,2]
[323276152,1713864641389,-6409.69,0.00011586,2]
[323276154,1713864641402,-6409.69,0.00011586,2]
[323276155,1713864641411,-6409.69,0.00011586,2]
[323276157,1713864641421,-6409.69,0.00011586,2]
[323276160,1713864641430,-6409.69,0.00011586,2]
[323276162,1713864641439,-6409.69,0.00011586,2]
[323276164,1713864641448,-6409.69,0.00011586,2]
[323276166,1713864641457,-6409.69,0.00011586,2]
[323276168,1713864641467,-6409.69,0.00011586,2]
[323276169,1713864641480,-6409.69,0.00011586,2]
[323276171,1713864641489,-6409.69,0.00011586,2]
[323276174,1713864641499,-6409.69,0.00011586,2]
[323276175,1713864641508,-500.0,0.00011586,2]
[323276177,1713864641517,-6409.69,0.00011586,2]
[323276179,1713864641526,-6409.69,0.00011586,2]
[323276181,1713864641535,-6409.69,0.00011586,2]
[323276183,1713864641545,-6409.69,0.00011586,2]
[323276186,1713864641556,-6409.69,0.00011586,2]
[323276188,1713864641566,-6409.75966508,0.00011586,2]
[323276190,1713864641574,-551.48475181,0.00011586,2]
[323276192,1713864641584,-709.24,0.00011586,2]
[323276194,1713864641593,-501.41258702,0.00011586,2]
[323276196,1713864641601,-500.0,0.00011586,2]
[323276198,1713864641610,-500.0,0.00011586,2]
[323276200,1713864641619,-681.38,0.00011586,2]
[323276201,1713864641629,-514.40268982,0.00011586,2]
[323276204,1713864641638,-500.0,0.00011586,2]
[323276205,1713864641647,-500.0,0.00011586,2]
[323276207,1713864641656,-478.46933375,0.00011586,2]
[323276210,1713864641666,-500.0,0.00011586,2]
[323276212,1713864641675,-550.31,0.00011586,2]
[323276214,1713864641684,-500.0,0.00011586,2]
[323276215,1713864641693,-500.0,0.00011586,2]
[323276217,1713864641702,-500.0,0.00011586,2]
[323276220,1713864641712,-3992.41,0.00011586,2]
[323276222,1713864641724,-500.0,0.00011586,2]
[323276224,1713864641734,-821.06,0.00011586,2]
[323276226,1713864641743,-500.0,0.00011586,2]
[323276228,1713864641752,-3221.84,0.00011586,2]
[323276230,1713864641762,-500.0,0.00011586,2]
[323276231,1713864641771,-1229.88,0.00011586,2]
[323276232,1713864641781,-500.0,0.00011586,2]
[323276233,1713864641791,-531.26,0.00011586,2]
[323276234,1713864641800,-515.20768876,0.00011586,2]
[323276235,1713864641809,-555.77,0.00011586,2]
[323276236,1713864641818,-500.0,0.00011586,2]
[323276237,1713864641827,-500.0,0.00011586,2]
[323276238,1713864641836,-500.0,0.00011586,2]
[323276239,1713864641845,-500.0,0.00011586,2]
[323276240,1713864641854,-500.0,0.00011586,2]
[323276241,1713864641863,-1287.94,0.00011586,2]
[323276242,1713864641872,-500.0,0.00011586,2]
[323276243,1713864641882,-698.36,0.00011586,2]
[323276244,1713864641891,-500.0,0.00011586,2]
[323276245,1713864641901,-576.54757018,0.00011586,2]
[323276246,1713864641910,-500.0,0.00011586,2]
[323276247,1713864641919,-1012.98,0.00011586,2]
[323276248,1713864641929,-500.0,0.00011586,2]
[323276249,1713864641938,-500.0,0.00011586,2]
[323276250,1713864641948,-500.0,0.00011586,2]
[323276251,1713864641957,-500.0,0.00011586,2]
[323276252,1713864641966,-35443.33776737,0.00011587,2]
[323276253,1713864641976,-500.0,0.00011588,2]
[323276254,1713864641985,-500.0,0.00011588,2]
[323276255,1713864641994,-955.58,0.00011588,2]
[323276256,1713864642003,-500.0,0.00011588,2]
[323276257,1713864642012,-986.36,0.00011588,2]
[323276258,1713864642021,-500.0,0.00011588,2]
[323276259,1713864642030,-500.0,0.00011588,2]
[323276260,1713864642039,-500.0,0.00011588,2]
[323276261,1713864642048,-500.0,0.00011588,2]
[323276262,1713864642057,-500.0,0.00011588,2]
[323276263,1713864642066,-1047.02,0.00011588,2]
[323276264,1713864642076,-500.0,0.00011588,2]
[323276265,1713864642085,-500.0,0.00011588,2]
[323276266,1713864642094,-500.0,0.00011588,2]
[323276267,1713864642104,-500.0,0.00011588,2]
[323276268,1713864642113,-500.0,0.00011588,2]
[323276269,1713864642122,-500.0,0.00011588,2]
[323276270,1713864642131,-539.34,0.00011588,2]
[323276271,1713864642141,-505.26171624,0.00011588,2]
[323276272,1713864642353,-500.0,0.00011588,2]
[323276273,1713864642363,-500.0,0.00011588,2]
[323276274,1713864642373,-290.01,0.00011588,2]
[323276275,1713864642383,-529.88033474,0.00011588,2]
[323276276,1713864642393,-500.0,0.00011588,2]
[323276277,1713864642403,-500.0,0.00011588,2]
[323276278,1713864642413,-500.0,0.00011588,2]
[323276279,1713864642422,-500.0,0.00011588,2]
[323276280,1713864642431,-500.0,0.00011588,2]
[323276281,1713864642440,-1542.87,0.00011588,2]
[323276282,1713864642450,-615.23689345,0.00011588,2]
[323276283,1713864642460,-500.0,0.00011588,2]
[323276284,1713864642470,-506.47935853,0.00011588,2]
[323276285,1713864642484,-150.0,0.00011588,2]
[323276286,1713864642494,-500.0,0.00011588,2]
[323276287,1713864642504,-500.0,0.00011588,2]
[323276288,1713864642514,-500.0,0.00011588,2]
[323276289,1713864642524,-581.26634517,0.00011588,2]
[323276290,1713864642534,-507.62238835,0.00011588,2]
[323276291,1713864642543,-500.0,0.00011588,2]
[323276292,1713864642554,-1045.0,0.00011588,2]
[323276293,1713864642564,-533.58956418,0.00011588,2]
[323276294,1713864642573,-500.0,0.00011588,2]
[323276295,1713864642582,-613.3092166,0.00011588,2]
[323276296,1713864642592,-500.0,0.00011588,2]
[323276297,1713864642601,-370.58841214,0.00011588,2]
[323276298,1713864642610,-500.0,0.00011588,2]
[323276299,1713864642619,-500.0,0.00011588,2]
[323276300,1713864642629,-500.0,0.00011588,2]
[323276301,1713864642638,-500.0,0.00011588,2]
[323276302,1713864642651,-500.0,0.00011588,2]
[323276303,1713864642661,-500.0,0.00011588,2]
[323276304,1713864642670,-500.0,0.00011588,2]
[323276305,1713864642680,-500.0,0.00011588,2]
[323276306,1713864642690,-509.14764831,0.00011588,2]
[323276307,1713864642699,-500.0,0.00011588,2]
[323276308,1713864642709,-500.0,0.00011588,2]
[323276309,1713864642718,-500.0,0.00011588,2]
[323276310,1713864642728,-500.0,0.00011588,2]
[323276311,1713864642738,-500.0,0.00011588,2]
[323276312,1713864642747,-585.98,0.00011588,2]
[323276313,1713864642758,-500.0,0.00011588,2]
[323276314,1713864642768,-500.0,0.00011588,2]
[323276315,1713864642777,-500.0,0.00011588,2]
[323276316,1713864642786,-500.0,0.00011588,2]
[323276317,1713864642795,-686.05,0.00011588,2]
[323276318,1713864642805,-263.23456761,0.00011588,2]
[323276319,1713864642815,-500.0,0.00011588,2]
[323276320,1713864642824,-500.0,0.00011588,2]
[323276321,1713864642834,-500.0,0.00011588,2]
[323276322,1713864642844,-500.0,0.00011588,2]
[323276323,1713864642854,-500.0,0.00011588,2]
[323276324,1713864642863,-500.0,0.00011588,2]
[323276325,1713864642873,-499.37530364,0.00011588,2]
[323276326,1713864642882,-500.0,0.00011588,2]
[323276327,1713864642891,-500.83162997,0.00011588,2]
[323276328,1713864642902,-500.0,0.00011588,2]
[323276329,1713864642911,-2071.39,0.00011588,2]
[323276330,1713864642922,-500.0,0.00011588,2]
[323276331,1713864642931,-500.0,0.00011588,2]
[323276332,1713864642941,-500.0,0.00011588,2]
[323276333,1713864642951,-500.0,0.00011588,2]
[323276334,1713864642962,-500.0,0.00011588,2]
[323276335,1713864642972,-2406.87,0.00011588,2]
[323276336,1713864642982,-500.0,0.00011588,2]
[323276337,1713864642992,-500.0,0.00011588,2]
[323276338,1713864643002,-500.0,0.00011588,2]
[323276339,1713864643013,-2027.48,0.00011588,2]
[323276340,1713864643022,-1334.38,0.00011588,2]
[323276341,1713864643031,-3482.35,0.00011588,2]
[323276342,1713864643041,-2465.55,0.00011588,2]
[323276343,1713864643051,-169.99078475,0.00011589,2]
[323276344,1713864643060,-502.32250162,0.00011589,2]
[323276345,1713864643071,-500.0,0.00011589,2]
[323276346,1713864643081,-1064.13,0.00011589,2]
[323276347,1713864643091,-502.03244005,0.00011589,2]
[323276348,1713864643100,-500.0,0.00011589,2]
[323276349,1713864643110,-500.0,0.00011589,2]
[323276350,1713864643119,-501.34016465,0.00011589,2]
[323276351,1713864643129,-500.0,0.00011589,2]
[323276352,1713864643139,-500.0,0.00011589,2]
[323276353,1713864643151,-500.0,0.00011589,2]
[323276354,1713864643161,-500.0,0.00011589,2]
[323276355,1713864643171,-500.0,0.00011589,2]
[323276356,1713864643181,-500.0,0.00011589,2]
[323276357,1713864643191,-502.95101655,0.00011589,2]
[323276358,1713864643201,-500.0,0.00011589,2]
[323276359,1713864643211,-1181.72,0.00011589,2]
[323276360,1713864643221,-500.0,0.00011589,2]
[323276361,1713864643232,-500.0,0.00011589,2]
[323276362,1713864643242,-500.0,0.00011589,2]
[323276363,1713864643252,-500.0,0.00011589,2]
[323276364,1713864643262,-500.0,0.00011589,2]
[323276366,1713864643273,-500.0,0.00011589,2]
[323276367,1713864643284,-500.0,0.00011589,2]
[323276368,1713864643294,-500.0,0.00011589,2]
[323276369,1713864643305,-500.0,0.00011589,2]
[323276370,1713864643314,-500.0,0.00011589,2]
[323276372,1713864643324,-500.0,0.00011589,2]
[323276374,1713864643334,-500.0,0.00011589,2]
[323276376,1713864643344,-500.0,0.00011589,2]
[323276378,1713864643355,-448.79363045,0.00011589,2]
[323276381,1713864643365,-500.0,0.00011589,2]
[323276383,1713864643376,-500.0,0.00011589,2]
[323276384,1713864643386,-500.0,0.00011589,2]
[323276385,1713864643396,-500.0,0.00011589,2]
[323276386,1713864643406,-500.0,0.00011589,2]
[323276387,1713864643417,-500.0,0.00011589,2]
[323276388,1713864643427,-500.0,0.00011589,2]
[323276389,1713864643438,-500.0,0.00011589,2]
[323276390,1713864643449,-500.0,0.00011589,2]
[323276391,1713864643459,-500.0,0.00011589,2]
[323276393,1713864643469,-500.0,0.00011589,2]
[323276395,1713864643482,-1290.73,0.00011589,2]
[323276397,1713864643492,-500.0,0.00011589,2]
[323276399,1713864643502,-500.0,0.00011589,2]
[323276401,1713864643512,-500.0,0.00011589,2]
[323276403,1713864643522,-500.0,0.00011589,2]
[323276405,1713864643531,-500.0,0.00011589,2]
[323276407,1713864643541,-500.0,0.00011589,2]
[323276409,1713864643552,-500.0,0.00011589,2]
[323276411,1713864643562,-500.0,0.00011589,2]
[323276413,1713864643573,-1250.64,0.00011589,2]
[323276415,1713864643585,-500.0,0.00011589,2]
[323276417,1713864643597,-500.0,0.00011589,2]
[323276419,1713864643608,-597.43,0.00011589,2]
[323276421,1713864643618,-500.0,0.00011589,2]
[323276423,1713864643628,-500.0,0.00011589,2]
[323276425,1713864643638,-500.0,0.00011589,2]
[323276427,1713864643649,-500.0,0.00011589,2]
[323276429,1713864643658,-500.0,0.00011589,2]
[323276431,1713864643668,-500.0,0.00011589,2]
[323276433,1713864643679,-500.0,0.00011589,2]
[323276435,1713864643689,-500.0,0.00011589,2]
[323276437,1713864643698,-500.0,0.00011589,2]
[323276438,1713864643708,-500.0,0.00011589,2]
[323276439,1713864643718,-500.0,0.00011589,2]
[323276440,1713864643727,-500.0,0.00011589,2]
[323276441,1713864643737,-500.0,0.00011589,2]
[323276442,1713864643747,-500.0,0.00011589,2]
[323276443,1713864643757,-500.0,0.00011589,2]
[323276444,1713864643766,-501.25219496,0.00011589,2]
[323276445,1713864643776,-500.0,0.00011589,2]
[323276446,1713864643786,-628.21,0.00011589,2]
[323276447,1713864643795,-500.0,0.00011589,2]
[323276448,1713864643805,-500.0,0.00011589,2]
[323276449,1713864643814,-500.0,0.00011589,2]
[323276450,1713864643823,-500.0,0.00011589,2]
[323276451,1713864643833,-500.0,0.00011589,2]
[323276452,1713864643843,-500.0,0.00011589,2]
[323276453,1713864643853,-500.0,0.00011589,2]
[323276454,1713864643864,-500.0,0.00011589,2]
[323276455,1713864643874,-500.0,0.00011589,2]
[323276456,1713864643884,-500.0,0.00011589,2]
[323276457,1713864643895,-500.0,0.00011589,2]
[323276458,1713864643905,-500.0,0.00011589,2]
[323276459,1713864643915,-500.0,0.00011589,2]
[323276460,1713864643925,-749.6,0.00011589,2]
[323276461,1713864643935,-500.0,0.00011589,2]
[323276462,1713864643944,-500.0,0.00011589,2]
[323276463,1713864643955,-460.71191539,0.00011589,2]
[323276464,1713864643964,-500.0,0.00011589,2]
[323276465,1713864643973,-500.0,0.00011589,2]
[323276466,1713864643983,-500.0,0.00011589,2]
[323276467,1713864643992,-597.25606466,0.00011589,2]
[323276468,1713864644002,-500.0,0.00011589,2]
[323276469,1713864644011,-500.0,0.00011589,2]
[323276470,1713864644020,-500.0,0.00011589,2]
[323276471,1713864644029,-500.0,0.00011589,2]
[323276472,1713864644038,-500.0,0.00011589,2]
[323276473,1713864644047,-500.0,0.00011589,2]
[323276474,1713864644056,-500.0,0.00011589,2]
[323276475,1713864644065,-500.0,0.00011589,2]
[323276476,1713864644074,-500.0,0.00011589,2]
[323276477,1713864644083,-583.82417728,0.00011589,2]
[323276478,1713864644092,-618.92,0.00011589,2]
[323276479,1713864644102,-546.07273924,0.00011589,2]
[323276480,1713864644111,-1100.55,0.00011589,2]
[323276481,1713864644120,-500.0,0.00011589,2]
[323276483,1713864644130,-500.0,0.00011589,2]
[323276485,1713864644139,-526.58,0.00011589,2]
[323276487,1713864644149,-500.0,0.00011589,2]
[323276489,1713864644158,-500.0,0.00011589,2]
[323276491,1713864644167,-500.0,0.00011589,2]
[323276492,1713864644176,-150.0,0.00011589,2]
[323276494,1713864644185,-500.0,0.00011589,2]
[323276496,1713864644194,-505.62263145,0.00011589,2]
[323276498,1713864644203,-500.0,0.00011589,2]
[323276500,1713864644212,-500.0,0.00011589,2]
[323276502,1713864644222,-5000.0,0.00011589,2]
[323276503,1713864644230,-1366.22,0.00011589,2]
[323276504,1713864644239,-500.0,0.00011589,2]
[323276505,1713864644249,-207.91,0.00011589,2]
[323276506,1713864644258,-211.42,0.00011589,2]
[323276507,1713864644267,-508.29008182,0.00011589,2]
[323276508,1713864644277,-504.80855703,0.00011589,2]
[323276509,1713864644286,-216.77981573,0.00011589,2]
[323276510,1713864644295,-1034.83,0.00011589,2]
[323276511,1713864644305,-500.0,0.00011589,2]
[323276512,1713864644314,-500.0,0.00011589,2]
[323276513,1713864644323,-500.0,0.00011589,2]
[323276514,1713864644333,-196.65,0.00011589,2]
[323276515,1713864644342,-505.88183437,0.00011589,2]
[323276516,1713864644351,-500.0,0.00011589,2]
[323276517,1713864644360,-578.94640226,0.00011589,2]
[323276518,1713864644370,-500.0,0.00011589,2]
[323276519,1713864644379,-500.0,0.00011589,2]
[323276520,1713864644389,-500.0,0.00011589,2]
[323276521,1713864644398,-637.31365885,0.00011589,2]
[323276522,1713864644408,-500.0,0.00011589,2]
[323276523,1713864644417,-500.0,0.00011589,2]
[323276524,1713864644426,-503.15753355,0.00011589,2]
[323276525,1713864644435,-500.0,0.00011589,2]
[323276526,1713864644444,-628.93242781,0.00011589,2]
[323276527,1713864644453,-500.0,0.00011589,2]
[323276528,1713864644462,-1174.44,0.00011589,2]
[323276529,1713864644472,-500.0,0.00011589,2]
[323276530,1713864644485,-1115.59,0.00011589,2]
[323276531,1713864644494,-409.95577367,0.00011589,2]
[323276532,1713864644503,-500.0,0.00011589,2]
[323276533,1713864644513,-504.12784133,0.00011589,2]
[323276534,1713864644524,-500.0,0.00011589,2]
[323276535,1713864644533,-500.0,0.00011589,2]
[323276536,1713864644543,-500.0,0.00011589,2]
[323276537,1713864644556,-500.0,0.00011589,2]
[323276538,1713864644566,-507.06318018,0.00011589,2]
[323276539,1713864644575,-500.0,0.00011589,2]
[323276540,1713864644584,-500.0,0.00011589,2]
[323276541,1713864644594,-500.0,0.00011589,2]
[323276542,1713864644603,-500.0,0.00011589,2]
[323276543,1713864644613,-502.62017985,0.00011589,2]
[323276544,1713864644623,-500.0,0.00011589,2]
[323276545,1713864644632,-500.0,0.00011589,2]
[323276546,1713864644642,-384.54323858,0.00011589,2]
[323276547,1713864644652,-500.0,0.00011589,2]
[323276548,1713864644661,-500.0,0.00011589,2]
[323276549,1713864644672,-500.0,0.00011589,2]
[323276550,1713864644681,-471.03775123,0.00011589,2]
[323276551,1713864644690,-500.0,0.00011589,2]
[323276552,1713864644700,-165.31206238,0.00011589,2]
[323276553,1713864644710,-500.0,0.00011589,2]
[323276554,1713864644785,-500.0,0.00011589,2]
[323276555,1713864644795,-500.0,0.00011589,2]
[323276556,1713864644804,-500.0,0.00011589,2]
[323276557,1713864644813,-500.0,0.00011589,2]
[323276558,1713864644823,-500.0,0.00011589,2]
[323276559,1713864644833,-500.0,0.00011589,2]
[323276560,1713864644842,-500.0,0.00011589,2]
[323276561,1713864644851,-589.26536761,0.00011589,2]
[323276562,1713864644861,-500.0,0.00011589,2]
[323276563,1713864644870,-500.0,0.00011589,2]
[323276564,1713864644881,-500.0,0.00011589,2]
[323276565,1713864644890,-500.0,0.00011589,2]
[323276566,1713864644900,-500.0,0.00011589,2]
[323276567,1713864644909,-500.0,0.00011589,2]
[323276568,1713864644919,-500.0,0.00011589,2]
[323276569,1713864644930,-500.0,0.00011589,2]
[323276570,1713864644940,-500.0,0.00011589,2]
[323276571,1713864644950,-500.0,0.00011589,2]
[323276572,1713864644961,-500.0,0.00011589,2]
[323276573,1713864644971,-500.0,0.00011589,2]
[323276574,1713864644981,-945.64,0.00011589,2]
[323276575,1713864644990,-500.0,0.00011589,2]
[323276576,1713864645000,-500.0,0.00011589,2]
[323276577,1713864645010,-604.22,0.00011589,2]
[323276578,1713864645020,-500.0,0.00011589,2]
[323276579,1713864645029,-500.0,0.00011589,2]
[323276580,1713864645039,-500.0,0.00011589,2]
[323276581,1713864645049,-500.0,0.00011589,2]
[323276582,1713864645058,-727.3,0.00011589,2]
[323276583,1713864645068,-500.0,0.00011589,2]
[323276584,1713864645078,-500.0,0.00011589,2]
[323276585,1713864645088,-500.0,0.00011589,2]
[323276586,1713864645097,-500.0,0.00011589,2]
[323276587,1713864645106,-500.0,0.00011589,2]
[323276588,1713864645115,-967.93,0.00011589,2]
[323276589,1713864645123,-177.17,0.00011589,2]
[323276590,1713864645132,-500.0,0.00011589,2]
[323276591,1713864645140,-500.0,0.00011589,2]
[323276592,1713864645150,-500.0,0.00011589,2]
[323276593,1713864645159,-500.0,0.00011589,2]
[323276594,1713864645167,-466.8761274,0.00011589,2]
[323276595,1713864645176,-776.78,0.00011589,2]
[323276596,1713864645184,-500.0,0.00011589,2]
[323276597,1713864645193,-501.37179699,0.00011589,2]
[323276598,1713864645202,-929.54,0.00011589,2]
[323276599,1713864645210,-500.0,0.00011589,2]
[323276600,1713864645218,-618.95,0.00011589,2]
[323276601,1713864645227,-276.87277495,0.00011589,2]
[323276602,1713864645236,-252.91472118,0.00011589,2]
[323276603,1713864645245,-500.0,0.00011589,2]
[323276604,1713864645253,-500.0,0.00011589,2]
[323276605,1713864645262,-669.49,0.00011589,2]
[323276606,1713864645271,-155.5395067,0.00011589,2]
[323276607,1713864645279,-500.0,0.00011589,2]
[323276608,1713864645289,-420.76452259,0.00011589,2]
[323276609,1713864645297,-847.59,0.00011589,2]
[323276610,1713864645306,-500.0,0.00011589,2]